bitfinex/quotes_ETHUSD_20241204
["timestamp","ask_amount","ask_price","bid_price","bid_amount"]
[1733276996930,0.68574042,3691.1,3689.2,3.271062]
[1733276996931,0.0891927,3690.7,3689.9,1.512]
[1733276997137,1.4752,3691.0,3690.0,2.71002]
[1733276997336,0.08919354,3690.9,3690.7,2.70949]
[1733276997562,0.0891952,3691.2,3690.1,0.02709005]
[1733276997737,1.4752,3691.3,3690.9,2.70936]
[1733276997941,0.08919783,3691.2,3690.9,2.70936]
[1733276998142,1.4752,3691.3,3690.8,2.70941]
[1733276998374,1.4752,3691.3,3690.5,2.7096]
[1733276998538,1.4752,3691.3,3690.5,0.27096]
[1733276998737,1.4752,3691.3,3690.7,2.70947]
[1733276999078,0.08920296,3691.2,3690.7,2.70947]
[1733276999248,1.4752,3691.3,3689.9,1.512]
[1733276999573,0.089206,3691.2,3690.3,2.7098]
[1733276999771,1.4752,3691.3,3690.3,2.7098]
[1733276999772,0.2456466,3691.1,3690.3,2.7098]
[1733276999972,0.089206,3691.0,3690.4,0.02709394]
[1733277000179,1.4752,3691.3,3690.6,2.70953]
[1733277000477,0.08920089,3691.2,3689.9,4.22204]
[1733277000666,0.08920089,3691.1,3689.9,4.22204]
[1733277000843,0.08920089,3691.0,3690.0,3.422204]
[1733277001177,0.08920089,3691.2,3690.1,2.73704243]
[1733277001377,0.08920089,3691.1,3690.1,2.73704243]
[1733277001682,1.4752,3691.3,3690.3,2.7098]
[1733277001876,1.4752,3691.3,3690.5,2.70965]
[1733277002064,1.56440089,3691.3,3690.6,0.02709022]
[1733277002246,1.4752,3691.3,3690.9,2.70935]
[1733277002636,0.28244974,3691.7,3690.9,0.02708997]
[1733277002637,0.08920089,3691.6,3690.9,0.02708997]
[1733277002841,1.75764974,3691.7,3691.0,0.02708603]
[1733277003053,1.75764974,3691.7,3691.4,2.70898]
[1733277003257,1.75764974,3691.7,3691.4,2.979878]
[1733277003545,0.28244974,3691.7,3691.5,2.70891]
[1733277003745,0.28244974,3691.7,3691.0,0.02708603]
[1733277004086,0.28244974,3691.7,3691.6,2.70885]
[1733277007489,1.4752,3691.6,3690.8,2.70941]
[1733277007645,1.4752,3691.6,3690.6,1.5196]
[1733277007992,0.28244974,3691.7,3691.6,2.70885]
[1733277009047,0.28244974,3691.7,3691.4,1.5245]
[1733277009048,0.28244974,3691.7,3691.4,2.70899]
[1733277009247,0.28244974,3691.7,3691.5,2.70892]
[1733277009843,0.28244974,3691.7,3691.0,2.70929]
[1733277009844,1.4752,3691.6,3691.0,2.70929]
[1733277010049,1.4752,3691.6,3691.4,2.70895]
[1733277010277,1.4752,3691.6,3691.5,2.70892]
[1733277010793,1.4752,3691.6,3690.8,1.6416]
[1733277011090,0.28244974,3691.7,3691.6,2.70885]
[1733277012311,0.28244974,3691.7,3691.6,2.73593338]
[1733277012520,0.08947635,3692.6,3691.6,3.07350342]
[1733277012782,0.28229795,3693.1,3692.4,1.604]
[1733277012976,0.28229795,3693.1,3693.0,2.70782]
[1733277013683,1.4752,3693.7,3693.0,2.70782]
[1733277013684,0.08945645,3693.5,3693.3,2.70755]
[1733277013881,1.4752,3693.7,3693.3,2.70755]
[1733277014217,1.4752,3693.7,3692.8,2.70796]
[1733277014218,1.69046645,3693.7,3692.8,2.70796]
[1733277014375,0.08939198,3693.6,3692.8,2.7079]
[1733277014581,1.69046645,3693.7,3692.4,4.31226]
[1733277014877,0.08939022,3693.6,3692.5,0.431226]
[1733277015115,0.08939022,3693.5,3692.4,1.604]
[1733277015312,1.56454537,3693.6,3692.5,2.70815]
[1733277015507,1.56454537,3693.6,3691.6,3.04642004]
[1733277015508,4.0,3693.3,3691.4,1.6101]
[1733277015716,2.70776,3693.1,3691.7,2.70874]
[1733277016025,1.4752,3692.7,3691.0,1.546]
[1733277016190,1.4752,3692.5,3691.3,2.70905]
[1733277016517,0.25251486,3692.9,3691.1,2.7092]
[1733277016518,1.4752,3692.3,3691.1,2.7092]
[1733277016720,1.56454537,3692.3,3691.1,2.7092]
[1733277016926,4.18377,3692.0,3690.5,2.7096]
[1733277017216,1.4752,3691.8,3690.6,0.27096]
[1733277017378,1.4752,3691.7,3690.2,2.70981]
[1733277017722,1.4752,3691.5,3690.3,2.70979]
[1733277018017,1.56236929,3691.5,3690.3,2.70979]
[1733277018202,4.0,3691.4,3690.4,0.426019]
[1733277018409,1.4752,3691.3,3690.3,2.70979]
[1733277018611,1.4752,3691.3,3689.7,1.6352]
[1733277018786,1.4752,3691.3,3690.2,2.70986]
[1733277018984,1.4752,3691.3,3690.3,0.29807853]
[1733277019219,4.0,3691.1,3690.9,2.70933]
[1733277019634,1.4752,3691.7,3690.6,2.70956]
[1733277019810,1.4752,3691.7,3691.1,2.70921]
[1733277021011,1.4752,3691.7,3691.2,2.7362275]
[1733277021243,1.4752,3691.7,3691.2,2.70914]
[1733277021401,1.4752,3691.7,3691.3,0.02708751]
[1733277021602,1.4752,3692.2,3691.6,2.70883]
[1733277021801,1.56238908,3692.2,3691.6,2.70883]
[1733277022039,1.4752,3692.2,3691.3,2.70902]
[1733277022342,1.4752,3692.2,3690.7,0.735948]
[1733277022499,1.4752,3692.0,3690.9,2.70935]
[1733277022695,1.56238908,3692.0,3690.9,2.70935]
[1733277022991,0.08718908,3691.9,3690.8,0.02708844]
[1733277023103,1.4752,3692.0,3691.1,2.70921]
[1733277023303,1.56238908,3692.0,3691.2,0.02708845]
[1733277023615,1.4752,3692.0,3691.2,0.02708845]
[1733277023823,1.4752,3692.0,3691.2,2.70911]
[1733277024234,1.4752,3692.0,3691.3,2.70906]
[1733277024447,1.4752,3692.0,3690.9,0.29730221]
[1733277024651,1.4752,3692.0,3690.8,2.94586364]
[1733277024963,1.4752,3691.8,3690.8,0.23648364]
[1733277025272,1.56238908,3691.8,3691.2,2.70912]
[1733277025433,1.4752,3691.8,3691.3,2.70907]
[1733277025919,1.4752,3691.8,3691.0,2.70924]
[1733277026113,1.63144345,3691.8,3690.5,1.5303]
[1733277026316,1.4752,3691.8,3690.9,2.70935]
[1733277027119,0.08729569,3691.7,3690.9,2.70935]
[1733277027318,1.4752,3691.8,3690.9,2.70935]
[1733277027515,0.08730117,3691.7,3690.9,2.70935]
[1733277027742,4.0,3691.6,3691.0,0.02708867]
[1733277028060,4.0,3691.6,3691.0,2.70922]
[1733277028759,1.4752,3691.8,3691.0,2.70922]
[1733277028960,0.08730211,3691.7,3691.0,2.980142]
[1733277029157,0.28237265,3691.7,3691.0,2.980142]
[1733277029961,0.28237265,3691.7,3691.0,0.270922]
[1733277030157,0.28237265,3691.7,3691.3,2.70906]
[1733277030365,0.28237265,3691.7,3691.0,0.24800916]
[1733277030653,0.28237265,3691.7,3691.4,2.70899]
[1733277030858,0.28237265,3691.7,3691.1,2.70917]
[1733277031279,0.28237265,3691.7,3691.2,2.70914]
[1733277031559,0.28237265,3691.7,3690.4,5.75608004]
[1733277031763,0.28237265,3691.7,3690.9,2.70933]
[1733277032460,0.08738441,3691.6,3691.0,0.03253213]
[1733277032661,0.28237265,3691.7,3691.0,0.03253213]
[1733277032865,0.08737624,3691.6,3691.0,0.03253213]
[1733277033166,0.08737624,3691.5,3691.0,2.74180213]
[1733277033345,0.53530113,3691.7,3691.0,0.03253213]
[1733277033522,0.08738647,3691.6,3691.0,0.03253213]
[1733277033725,0.08738647,3691.5,3691.1,0.03384639]
[1733277033918,0.08738647,3691.4,3691.1,0.03384639]
[1733277034183,0.2529278,3691.6,3691.0,2.70929]
[1733277034465,0.28237265,3691.7,3691.0,2.70929]
[1733277034466,0.08740059,3691.5,3691.0,2.70929]
[1733277034633,0.53530754,3691.7,3691.1,0.03384639]
[1733277034960,0.08738425,3691.6,3691.1,0.06093523]
[1733277035123,0.28237265,3691.7,3691.1,0.03384639]
[1733277035320,4.4472297,3691.6,3691.1,0.03384639]
[1733277035546,1.4752,3691.4,3690.1,2.70991]
[1733277035825,1.4752,3691.2,3690.3,2.70978]
[1733277036026,1.4752,3691.2,3690.2,0.03161067]
[1733277036027,0.08740243,3691.1,3690.2,0.03161067]
[1733277036229,0.08740243,3691.0,3690.1,2.70991]
[1733277036428,1.56260243,3690.9,3690.3,0.03161067]
[1733277036648,1.659461,3690.9,3689.9,0.434946]
[1733277036870,0.25292034,3691.1,3691.0,2.70929]
[1733277037068,1.4752,3691.6,3690.5,1.6393]
[1733277037250,0.28237265,3691.7,3691.4,2.70895]
[1733277037428,4.0,3691.5,3691.4,2.70895]
[1733277038055,4.0,3691.5,3691.3,1.5669]
[1733277038056,0.28237265,3691.7,3691.6,2.70885]
[1733277039168,0.28237265,3691.7,3691.6,2.7359346]
[1733277039325,0.28237265,3691.7,3691.6,2.70885]
[1733277039725,0.40461545,3692.7,3692.6,2.70811]
[1733277040056,0.08739451,3692.9,3692.6,3.130941]
[1733277040255,1.4752,3693.4,3693.0,2.70779]
[1733277040456,0.34014656,3693.3,3692.9,2.70789]
[1733277040639,0.25276533,3693.3,3692.6,0.422831]
[1733277040843,0.08738168,3693.3,3692.4,2.7082]
[1733277041041,0.087382,3693.3,3692.5,0.02707486]
[1733277041248,1.4752,3693.8,3693.0,2.70775]
[1733277041451,0.087382,3693.7,3693.1,2.70774]
[1733277041667,0.25265168,3693.6,3693.2,0.02707287]
[1733277041872,0.25265168,3693.6,3693.1,1.5479]
[1733277042171,1.562582,3693.8,3693.1,1.5479]
[1733277042172,1.4752,3693.8,3693.1,1.5479]
[1733277042346,0.44923107,3693.7,3693.0,2.70775]
[1733277042551,0.19671975,3693.7,3692.8,0.02707382]
[1733277042774,0.19671975,3693.7,3693.1,2.70773]
[1733277042984,0.16719197,3693.6,3693.1,2.70773]
[1733277043278,0.2525104,3693.7,3692.8,2.70796]
[1733277043467,1.4752,3693.8,3693.2,2.70767]
[1733277043647,1.4752,3693.8,3692.7,1.5106]
[1733277043979,1.4752,3693.8,3693.0,2.70782]
[1733277044137,0.2524819,3693.7,3693.0,2.70782]
[1733277044337,0.25250212,3693.6,3693.0,2.70782]
[1733277044573,0.25250212,3693.6,3692.8,0.02707397]
[1733277044775,0.43397997,3693.7,3693.0,2.7078]
[1733277044950,0.25250056,3693.6,3693.0,2.7078]
[1733277045359,0.43399863,3693.7,3693.0,2.7078]
[1733277045561,0.43399863,3693.7,3692.8,2.70796]
[1733277045562,0.18149807,3693.7,3692.8,2.70796]
[1733277045769,0.17439969,3693.6,3693.0,2.70782]
[1733277045951,1.4752,3693.8,3692.9,2.70788]
[1733277046283,1.4752,3693.8,3692.7,2.70801]
[1733277046440,1.4752,3693.8,3692.3,1.5875]
[1733277046441,0.25249161,3693.6,3692.3,1.5875]
[1733277046639,0.40001161,3693.7,3692.3,1.5875]
[1733277046839,0.40001161,3693.7,3692.3,4.29578]
[1733277047376,0.40001161,3693.7,3692.3,1.5875]
[1733277047585,0.25249161,3693.7,3692.5,2.70819]
[1733277047785,1.4752,3693.8,3693.3,2.7076]
[1733277048240,1.4752,3693.8,3692.3,3.04642004]
[1733277048442,0.17276916,3693.7,3692.7,2.70799]
[1733277048840,0.17276916,3693.7,3692.8,0.02939556]
[1733277049172,0.42526077,3693.7,3692.8,0.02939556]
[1733277049561,0.17276916,3693.7,3692.8,0.02939556]
[1733277049769,1.50228723,3693.6,3692.8,0.02939556]
[1733277049967,1.50228723,3693.6,3692.2,1.5105]
[1733277049968,0.1927548,3693.5,3692.6,2.70811]
[1733277050177,1.72769161,3693.6,3692.7,0.02939556]
[1733277050379,1.4752,3694.1,3693.4,2.70752]
[1733277050687,0.25249161,3694.0,3693.5,0.02874872]
[1733277050889,0.25249161,3694.0,3693.5,0.05582057]
[1733277051202,0.25249161,3693.9,3693.5,0.02874872]
[1733277051410,1.4752,3694.1,3693.5,0.02874872]
[1733277051701,1.4752,3694.1,3693.1,2.70773]
[1733277052016,1.4752,3694.1,3693.6,2.70732]
[1733277052164,1.4752,3694.1,3693.2,0.429643]
[1733277052165,1.4752,3694.1,3693.8,2.70723]
[1733277052658,1.4752,3694.1,3693.9,0.02778043]
[1733277052968,1.4752,3694.5,3693.9,0.02778043]
[1733277053163,0.17273292,3694.4,3693.9,0.02778043]
[1733277053497,1.4752,3694.5,3693.9,0.02778043]
[1733277054198,1.4752,3694.5,3693.5,2.70743]
[1733277054396,1.4752,3694.5,3694.0,0.02758905]
[1733277054780,1.4752,3694.5,3694.1,0.02654013]
[1733277055167,1.50228723,3694.4,3693.2,0.429643]
[1733277055361,1.4752,3694.4,3694.2,0.02654013]
[1733277055707,4.0,3694.3,3693.3,2.70758]
[1733277055859,1.72710332,3694.2,3692.9,1.5687]
[1733277056061,1.72710332,3694.2,3693.4,0.02624533]
[1733277056298,0.02708723,3694.1,3692.4,4.28022]
[1733277056505,4.0,3693.9,3693.5,0.02624533]
[1733277056706,4.0,3693.9,3692.9,2.70787]
[1733277056865,4.0,3693.9,3693.6,0.02624533]
[1733277057072,4.0,3693.9,3692.9,2.70787]
[1733277057470,1.78457237,3693.8,3693.0,0.02624533]
[1733277057667,2.43364839,3693.8,3693.0,0.02624533]
[1733277057904,2.43364839,3693.8,3692.7,2.70804]
[1733277058199,4.0,3693.7,3692.7,2.70804]
[1733277058399,0.2519722,3693.6,3692.8,0.02624533]
[1733277058605,0.89262832,3693.6,3692.8,0.02624533]
[1733277058771,0.89267177,3693.6,3692.8,0.02624533]
[1733277058967,0.64065612,3693.6,3692.8,0.02624533]
[1733277059300,0.89272273,3693.6,3692.8,0.02624533]
[1733277059485,4.0,3693.5,3692.8,2.70796]
[1733277059698,4.4607932,3693.5,3692.9,0.02651427]
[1733277060188,4.4607932,3693.5,3692.4,1.572]
[1733277060388,4.4607932,3693.5,3692.5,0.02651427]
[1733277060567,4.4607932,3693.5,3692.7,2.70799]
[1733277060769,0.4607932,3693.5,3692.7,2.70799]
[1733277060969,1.75748514,3693.8,3692.7,2.70799]
[1733277060970,1.75748514,3693.8,3692.8,0.02651427]
[1733277061708,1.75748514,3693.8,3692.7,2.708]
[1733277061917,2.0096179,3693.8,3692.7,2.708]
[1733277062220,1.4752,3693.6,3692.8,0.02651427]
[1733277062519,1.4752,3693.6,3692.4,1.572]
[1733277062520,1.72733276,3693.6,3692.4,1.572]
[1733277062722,0.20942893,3693.5,3692.9,0.02563943]
[1733277062911,0.20942893,3693.5,3692.7,2.70802]
[1733277063111,0.20942893,3693.5,3693.0,0.02563943]
[1733277063278,0.20942893,3693.5,3692.4,1.572]
[1733277063481,1.72733276,3693.6,3692.4,1.572]
[1733277063482,1.4752,3693.6,3692.7,2.70803]
[1733277063718,1.72733276,3693.6,3692.7,0.02707516]
[1733277063882,1.4752,3693.6,3692.5,0.43073352]
[1733277064083,1.4752,3693.6,3692.8,0.02563943]
[1733277064291,0.25213276,3693.5,3692.8,2.70792]
[1733277064626,1.4752,3693.6,3693.0,2.70781]
[1733277064788,1.91154841,3693.6,3693.0,2.70781]
[1733277064988,1.65941565,3693.6,3692.8,2.70795]
[1733277065524,0.25242548,3693.5,3692.9,0.02563943]
[1733277065818,1.65941565,3693.6,3692.9,0.02563943]
[1733277066032,0.25250693,3693.5,3692.9,0.02563943]
[1733277066189,0.33717828,3693.4,3692.9,0.02563943]
[1733277066391,0.25250693,3693.3,3692.8,2.70795]
[1733277066605,0.25250693,3693.2,3692.8,2.70795]
[1733277066933,0.08467294,3693.4,3692.9,0.02478478]
[1733277067131,0.25273804,3693.3,3692.9,0.02478478]
[1733277067424,0.25273804,3693.2,3692.6,2.70811]
[1733277067621,0.40388077,3693.4,3692.6,2.70811]
[1733277067820,0.3376922,3693.3,3692.7,2.70801]
[1733277068078,0.25301926,3693.2,3692.7,2.73196862]
[1733277068325,0.25301926,3693.1,3692.7,2.73196862]
[1733277068496,0.25301926,3693.1,3692.8,2.70796]
[1733277068685,1.4752,3693.6,3692.8,2.70796]
[1733277068892,0.91871533,3693.5,3692.9,0.02429998]
[1733277069191,0.74332038,3693.4,3692.9,0.02429998]
[1733277069532,1.4752,3693.2,3692.0,1.6216]
[1733277069730,0.74334564,3693.1,3693.0,0.02429998]
[1733277069899,0.74334564,3693.1,3692.0,4.33015]
[1733277069900,4.77043287,3693.1,3692.0,4.33015]
[1733277070228,4.77043287,3693.1,3691.4,5.44055573]
[1733277070229,5.28375293,3693.0,3691.8,2.7087]
[1733277070432,1.4752,3692.8,3691.8,2.7087]
[1733277070586,0.364949,3692.7,3691.6,4.34063]
[1733277070786,1.2522532,3692.6,3691.8,2.70868]
[1733277071007,0.25319129,3692.5,3691.9,2.70862]
[1733277071287,0.74322437,3692.4,3691.9,2.70862]
[1733277071525,0.33788192,3692.3,3691.9,2.70862]
[1733277071692,1.4752,3692.8,3691.9,2.70862]
[1733277071693,0.25319129,3692.2,3691.9,2.70862]
[1733277071912,0.25319129,3692.1,3691.9,2.70862]
[1733277072117,0.40527054,3692.6,3691.9,2.70859]
[1733277072313,0.48988936,3692.5,3692.4,2.70826]
[1733277072640,0.25325,3692.5,3692.4,2.70826]
[1733277072860,0.28226493,3692.5,3692.4,2.70826]
[1733277074139,0.28226493,3692.5,3692.4,3.141156]
[1733277076316,0.28226493,3692.5,3692.4,2.70826]
[1733277078708,0.28226493,3692.5,3692.4,4.27373819]
[1733277078906,0.28226493,3692.5,3692.4,4.24666]
[1733277083214,0.28226493,3692.5,3692.4,4.27373621]
[1733277083674,0.28226493,3692.5,3692.4,4.24666]
[1733277083880,0.28226493,3692.5,3692.4,4.92881457]
[1733277084580,0.28226493,3692.5,3692.4,7.95588832]
[1733277084769,0.28226493,3692.5,3692.4,7.92881457]
[1733277085354,4.93e-06,3692.5,3692.4,7.92881457]
[1733277085569,0.25338544,3693.7,3693.5,2.70745]
[1733277085866,1.4752,3694.4,3693.6,4.12218573]
[1733277085867,0.28228404,3694.3,3693.6,4.12218573]
[1733277086070,0.25336212,3694.2,3693.7,2.70731]
[1733277086388,0.28228404,3694.3,3693.8,2.70719]
[1733277086571,0.33789046,3694.2,3693.8,2.70719]
[1733277086760,0.28228404,3694.3,3693.8,2.70719]
[1733277086994,0.25324974,3694.2,3693.8,2.70719]
[1733277087297,0.25324974,3694.1,3693.8,2.70719]
[1733277087498,0.28228404,3694.3,3693.3,1.584]
[1733277087711,0.33780495,3694.2,3693.3,2.27065157]
[1733277087913,2.21807636,3694.1,3693.3,2.70759]
[1733277088113,0.33780495,3694.0,3693.3,2.70759]
[1733277088300,1.4752,3694.1,3693.1,2.70773]
[1733277088515,0.55674292,3694.0,3693.4,2.70752]
[1733277088696,0.55674292,3694.0,3692.9,1.61107038]
[1733277088697,0.33778492,3693.9,3693.2,2.57488573]
[1733277088900,1.4752,3694.1,3693.9,2.70716]
[1733277089187,0.28228404,3694.3,3693.2,2.6019552]
[1733277089386,0.28228404,3694.3,3694.0,2.70705]
[1733277089593,0.28228404,3694.3,3694.2,2.70694]
[1733277091637,1.4752,3694.8,3694.5,2.70672]
[1733277091931,0.02708723,3694.7,3693.3,4.55645857]
[1733277092131,1.4752,3694.5,3693.6,2.70737]
[1733277092431,0.33750874,3694.4,3693.6,2.70737]
[1733277092737,5.83979597,3694.3,3693.0,4.29917]
[1733277092896,0.33750874,3694.2,3693.5,2.70744]
[1733277093092,0.25286643,3694.1,3693.5,2.70744]
[1733277093307,0.08465452,3694.2,3693.5,2.70744]
[1733277093503,0.25286697,3694.1,3693.5,2.70744]
[1733277093709,5.4752,3694.3,3693.5,2.70744]
[1733277093932,0.25286307,3694.2,3693.1,0.429917]
[1733277094229,1.4752,3694.0,3693.0,2.70778]
[1733277094729,1.4752,3694.0,3693.2,2.70766]
[1733277094929,1.4752,3694.0,3693.4,2.70749]
[1733277095128,1.4752,3694.0,3693.1,2.70769]
[1733277095437,1.4752,3694.0,3692.9,0.02707329]
[1733277095594,1.4752,3694.0,3693.2,2.70766]
[1733277095935,1.4752,3694.0,3692.9,0.71674719]
[1733277096096,1.4752,3694.0,3693.4,2.7075]
[1733277097594,1.4752,3694.0,3692.9,0.6896739]
[1733277097830,1.4752,3694.0,3693.1,2.70768]
[1733277098034,1.4752,3693.8,3692.4,2.70826]
[1733277098194,1.4752,3693.8,3693.1,2.70773]
[1733277098628,1.4752,3693.8,3693.6,2.70738]
[1733277098993,1.4752,3694.1,3694.0,2.70709]
[1733277099629,1.4752,3694.1,3693.7,2.70725]
[1733277100020,1.4752,3694.1,3692.9,1.5049]
[1733277100223,1.4752,3694.1,3693.4,2.70748]
[1733277100437,1.4752,3694.1,3693.5,2.70743]
[1733277100639,1.4752,3694.1,3693.0,3.11579857]
[1733277100640,1.4752,3694.1,3693.7,2.70729]
[1733277101000,1.4752,3694.1,3693.4,2.70749]
[1733277101502,1.4752,3694.1,3693.1,2.7077]
[1733277101741,0.17460723,3694.0,3693.1,2.7077]
[1733277102137,1.4752,3693.8,3692.8,2.7079]
[1733277102450,1.4752,3693.7,3692.8,2.7079]
[1733277102653,1.4752,3693.6,3692.8,2.7079]
[1733277102960,1.50228723,3693.6,3692.8,2.7079]
[1733277103266,1.50228723,3693.6,3692.2,2.70839]
[1733277103420,1.4752,3693.3,3692.2,2.70839]
[1733277103610,1.75512011,3693.2,3692.2,2.70839]
[1733277103817,1.81271627,3693.1,3692.2,2.70839]
[1733277104047,1.4752,3692.9,3692.2,2.70839]
[1733277104248,0.25283288,3692.8,3692.2,2.70839]
[1733277104460,1.4752,3692.9,3692.2,2.70839]
[1733277104610,0.25293995,3692.8,3692.0,2.70855]
[1733277105214,0.25293995,3692.8,3691.5,4.22007]
[1733277105215,0.08468755,3692.8,3692.1,2.70847]
[1733277105531,1.4752,3692.9,3692.1,2.70847]
[1733277105743,0.25280593,3692.8,3692.1,2.70847]
[1733277105927,0.25278688,3692.7,3692.1,2.70847]
[1733277106251,0.25278688,3692.7,3691.6,2.73593208]
[1733277106252,1.4752,3692.9,3691.6,2.73593208]
[1733277106553,1.4752,3692.9,3692.2,2.70839]
[1733277106751,1.4752,3692.9,3691.8,2.57488573]
[1733277107053,1.4752,3692.9,3691.7,3.40660078]
[1733277107210,1.75752123,3692.9,3691.7,3.40660078]
[1733277107652,1.75752123,3692.9,3692.2,2.70837]
[1733277108239,1.75752123,3692.9,3692.2,2.979207]
[1733277108770,1.75752123,3692.9,3692.2,0.270837]
[1733277108923,1.75752123,3692.9,3692.1,2.70847]
[1733277109262,0.2525877,3692.8,3692.1,2.70847]
[1733277109460,1.75752123,3692.9,3692.1,2.70847]
[1733277109760,1.75752123,3692.9,3692.2,2.7084]
[1733277110668,0.28232123,3692.9,3692.3,0.02708001]
[1733277110825,0.28232123,3692.9,3692.4,0.41328657]
[1733277111333,0.28232123,3692.9,3692.6,2.70809]
[1733277111530,0.28232123,3692.9,3692.4,0.41328657]
[1733277111531,0.28232123,3692.9,3692.4,3.12148657]
[1733277111736,0.28232123,3692.9,3692.5,0.02707733]
[1733277111947,0.28232123,3692.9,3692.8,2.70797]
[1733277112259,0.28232123,3692.9,3692.6,3.02293639]
[1733277112465,0.28232123,3692.9,3692.1,2.70845]
[1733277112762,0.28232123,3692.9,3691.8,5.28358573]
[1733277112763,1.4752,3692.8,3691.8,2.7087]
[1733277112918,1.4752,3692.8,3692.3,2.70828]
[1733277113117,1.4752,3692.8,3692.3,2.98181595]
[1733277113336,1.4752,3692.8,3692.4,2.70825]
[1733277114184,1.4752,3692.8,3692.3,0.27353595]
[1733277114485,1.4752,3692.8,3692.5,2.70818]
[1733277114649,1.4752,3692.8,3692.1,2.70847]
[1733277114850,0.28232123,3692.9,3692.6,2.70811]
[1733277115269,1.4752,3692.8,3691.1,2.70915]
[1733277115469,1.4752,3692.8,3692.2,2.70839]
[1733277116377,1.4752,3692.8,3691.3,4.33404]
[1733277116942,1.4752,3692.8,3691.3,1.625]
[1733277117145,2.70833,3692.4,3691.0,2.70926]
[1733277117345,1.4752,3692.2,3690.6,1.5437]
[1733277117575,1.4752,3692.0,3690.9,2.70934]
[1733277117762,1.4752,3691.8,3690.9,2.70934]
[1733277117960,0.02708723,3691.7,3690.4,0.27098]
[1733277118185,1.4752,3691.6,3690.6,2.70957]
[1733277118678,1.50228723,3691.6,3690.6,2.70957]
[1733277119084,1.4752,3691.5,3690.4,0.27098]
[1733277119264,1.4752,3691.3,3690.3,2.70977]
[1733277119464,2.70893,3691.5,3690.3,2.70977]
[1733277119465,1.4752,3691.1,3690.3,2.70977]
[1733277120061,1.4752,3691.1,3689.9,1.6025]
[1733277120279,0.02708723,3691.0,3690.1,2.70994]
[1733277120661,1.4752,3690.9,3689.8,2.71014]
[1733277120872,0.02708723,3690.8,3689.9,2.71009]
[1733277121199,1.4752,3690.7,3689.8,2.71017]
[1733277121498,0.14752,3690.6,3689.8,2.71017]
[1733277121986,1.4752,3690.5,3688.6,1.5492]
[1733277122149,1.4752,3690.5,3689.8,2.71016]
[1733277122349,1.4752,3690.5,3689.6,1.654]
[1733277122551,1.4752,3690.8,3690.3,2.70976]
[1733277122856,4.0,3690.4,3690.3,2.7098]
[1733277123761,1.4752,3691.2,3690.9,2.7093]
[1733277123969,1.4752,3691.2,3690.0,0.0713222]
[1733277123970,1.4752,3690.9,3690.0,0.0713222]
[1733277124193,1.4752,3690.8,3690.0,0.0713222]
[1733277124487,1.4752,3690.7,3690.0,0.0713222]
[1733277124694,0.51548413,3690.6,3690.0,0.0713222]
[1733277125066,0.76646597,3690.6,3690.0,0.0713222]
[1733277125255,0.51548413,3690.6,3690.0,0.0713222]
[1733277125768,4.0,3690.4,3690.2,2.70987]
[1733277125954,4.0,3690.4,3690.0,0.0713222]
[1733277126155,4.0,3690.4,3690.0,2.7813322]
[1733277126393,4.0,3690.4,3690.1,2.70993]
[1733277126691,4.0,3690.4,3690.2,2.70986]
[1733277126893,4.54752,3690.4,3690.0,0.0713222]
[1733277127101,1.4752,3690.3,3690.0,0.0713222]
[1733277127557,1.4752,3690.3,3690.0,2.7813422]
[1733277128056,1.4752,3690.3,3690.0,0.0713222]
[1733277128495,1.4752,3690.8,3690.0,0.0713222]
[1733277128790,1.4752,3690.8,3690.2,2.70986]
[1733277128955,1.4752,3690.8,3690.2,2.98797822]
[1733277129152,1.4752,3690.8,3690.6,2.70957]
[1733277129685,1.72597456,3691.2,3691.0,2.70928]
[1733277129856,4.0,3691.1,3691.0,2.70928]
[1733277130057,4.0,3691.1,3690.6,2.70957]
[1733277130288,4.0,3691.1,3690.7,2.980417]
[1733277130460,4.0,3691.1,3690.7,2.70946]
[1733277130657,4.0,3691.1,3690.2,2.98793822]
[1733277130873,1.4752,3691.6,3690.3,0.02709202]
[1733277131198,1.4752,3691.6,3691.1,2.70919]
[1733277131395,1.4752,3691.6,3690.9,2.70935]
[1733277131772,1.4752,3691.6,3690.5,2.70965]
[1733277132093,0.25123067,3691.5,3690.9,2.70929]
[1733277132305,0.2783179,3691.4,3690.7,2.70951]
[1733277132457,0.2783179,3691.4,3690.4,0.33523864]
[1733277132458,0.25123067,3691.3,3690.5,2.70963]
[1733277132662,0.25123067,3691.2,3690.5,2.70963]
[1733277132907,0.02708723,3691.4,3690.4,0.33523864]
[1733277133200,0.25164384,3691.3,3690.6,2.70958]
[1733277133412,0.45510858,3691.5,3690.7,2.70947]
[1733277133413,0.25164384,3691.2,3690.7,2.70947]
[1733277133558,1.08718529,3691.5,3690.8,2.70942]
[1733277133757,0.28246551,3691.5,3690.8,2.70942]
[1733277134061,0.27879872,3691.4,3690.5,2.70961]
[1733277134292,0.25171149,3691.3,3690.2,0.27811822]
[1733277134498,0.25171149,3691.2,3690.7,2.7095]
[1733277134791,0.68521621,3691.5,3690.7,2.7095]
[1733277134994,0.25167929,3691.4,3690.7,2.7095]
[1733277135160,0.25167929,3691.3,3690.7,2.7095]
[1733277135363,0.25167929,3691.2,3690.8,2.70942]
[1733277135586,0.68521621,3691.5,3690.5,2.70959]
[1733277135895,0.68521621,3691.5,3690.3,0.19961404]
[1733277135896,0.27863725,3691.4,3690.3,0.19961404]
[1733277136101,0.68138795,3691.4,3690.3,0.19961404]
[1733277136269,1.4752,3691.3,3690.4,2.70972]
[1733277136464,0.27863725,3691.2,3690.4,2.70972]
[1733277136665,0.25155002,3691.1,3690.1,2.70989]
[1733277136958,0.25155002,3691.1,3690.0,0.0713222]
[1733277136959,0.50311,3691.0,3690.0,0.0713222]
[1733277137160,4.58705597,3690.9,3690.0,0.0713222]
[1733277137367,1.4752,3690.7,3690.0,0.0713222]
[1733277137608,0.65405595,3690.6,3690.0,0.0713222]
[1733277138069,0.25155998,3690.6,3690.0,0.0713222]
[1733277138269,1.4752,3690.4,3690.0,0.0713222]
[1733277138598,0.25155998,3690.3,3690.0,0.0713222]
[1733277138800,0.25155998,3690.2,3690.0,0.0713222]